bitfinex/quotes_SOLUSD_20260221
["timestamp","ask_amount","ask_price","bid_price","bid_amount"]
[1771685943108,0.68703118,86.445,86.412,11.57239356]
[1771685943730,0.68703118,86.445,86.412,12.17517295]
[1771685944632,0.68703118,86.443,86.413,0.6018271]
[1771685945529,0.68703118,86.443,86.42,4.11389865]
[1771685945909,0.68703118,86.443,86.41,4.11389865]
[1771685946115,0.68703118,86.439,86.403,0.60087519]
[1771685947018,0.68703118,86.437,86.403,0.60087519]
[1771685948511,0.68703118,86.437,86.401,11.57384912]
[1771685948843,0.67072001,86.429,86.392,0.59719322]
[1771685949036,0.67072001,86.428,86.4,4.11389865]
[1771685949224,0.67072001,86.428,86.401,0.59630317]
[1771685951542,11.5704583,86.427,86.401,0.59630317]
[1771685951724,0.71740248,86.426,86.401,0.59630317]
[1771685952739,0.71740248,86.426,86.396,0.59282348]
[1771685953035,4.11389865,86.45,86.411,0.68793548]
[1771685954326,40.48629827,86.449,86.411,0.68793548]
[1771685954527,4.11389865,86.43,86.397,0.68793548]
[1771685954819,4.11389865,86.44,86.401,0.68793548]
[1771685955136,0.71740248,86.439,86.401,0.68793548]
[1771685956025,0.71740248,86.429,86.387,0.68793548]
[1771685956347,0.71740248,86.429,86.391,0.68793548]
[1771685958937,0.71740248,86.427,86.393,0.68793548]
[1771685963031,0.71740248,86.427,86.401,0.68793548]
[1771685967148,0.71740248,86.427,86.403,0.68793548]
[1771685975655,0.71740248,86.427,86.351,0.7315366]
[1771685975656,9.53757991,86.398,86.351,0.7315366]
[1771685975836,86.77944136,86.426,86.371,0.7315366]
[1771685975837,30.0,86.422,86.371,0.7315366]
[1771685976038,30.0,86.422,86.401,0.7315366]
[1771685976253,11.56975167,86.433,86.401,0.7315366]
[1771685976455,7.19242803,86.432,86.391,0.7315366]
[1771685976653,4.11389865,86.43,86.391,0.7315366]
[1771685976854,7.19242803,86.429,86.391,0.7315366]
[1771685977040,7.19242803,86.428,86.391,0.7315366]
[1771685977241,7.19242803,86.427,86.391,0.7315366]
[1771685977548,11.57072606,86.425,86.391,0.7315366]
[1771685977739,7.19242803,86.424,86.391,0.7315366]
[1771685977942,7.19242803,86.423,86.391,0.7315366]
[1771685978147,11.57072606,86.425,86.391,0.7315366]
[1771685978353,7.15472998,86.424,86.391,0.7315366]
[1771685978659,11.57072606,86.425,86.391,0.7315366]
[1771685978660,7.15472998,86.423,86.391,0.7315366]
[1771685978837,7.15472998,86.422,86.391,0.7315366]
[1771685981838,7.15472998,86.422,86.362,28.94772404]
[1771685981839,8.2277973,86.4,86.336,0.7315366]
[1771685982037,4.11389865,86.39,86.341,0.7315366]
[1771685982238,6.96060505,86.389,86.341,0.7315366]
[1771685982439,6.96060505,86.388,86.341,0.7315366]
[1771685982658,6.96060505,86.387,86.341,0.7315366]
[1771685982859,6.96060505,86.386,86.341,0.7315366]
[1771685983060,6.96060505,86.385,86.341,0.7315366]
[1771685983244,4.11389865,86.39,86.341,0.7315366]
[1771685983447,6.98902051,86.389,86.341,0.7315366]
[1771685983647,6.98902051,86.388,86.341,0.7315366]
[1771685983846,4.11389865,86.38,86.341,0.7315366]
[1771685984147,4.11389865,86.38,86.343,0.7315366]
[1771685984665,6.95900769,86.379,86.343,0.7315366]
[1771685984869,4.11389865,86.38,86.343,0.7315366]
[1771685985458,6.95530702,86.379,86.343,0.7315366]
[1771685985656,6.95530702,86.378,86.343,0.7315366]
[1771685985853,4.11389865,86.38,86.343,0.7315366]
[1771685985854,4.12326838,86.38,86.343,0.7315366]
[1771685986040,6.95531067,86.379,86.343,0.7315366]
[1771685986245,4.12326838,86.38,86.343,0.7315366]
[1771685986461,6.95330715,86.379,86.343,0.7315366]
[1771685986672,4.12326838,86.38,86.343,0.7315366]
[1771685986856,6.95330715,86.379,86.343,0.7315366]
[1771685987055,4.12326838,86.38,86.343,0.7315366]
[1771685988557,11.5768879,86.379,86.343,0.7315366]
[1771685990371,11.5768879,86.379,86.345,0.7315366]
[1771685990674,10.10148072,86.379,86.344,11.58158065]
[1771685990976,3.69383402,86.423,86.344,11.58158065]
[1771685990977,0.72004546,86.396,86.351,0.68385098]
[1771685991143,4.12326838,86.39,86.351,0.68385098]
[1771685991348,4.12326838,86.4,86.351,0.68385098]
[1771685991564,0.72004546,86.398,86.351,0.68385098]
[1771685991969,46.28504645,86.421,86.346,5.36086188]
[1771685991970,4.12326838,86.39,86.353,0.68385098]
[1771685993371,4.12326838,86.39,86.355,0.68385098]
[1771685994773,4.12326838,86.39,86.357,0.68385098]
[1771685996449,0.72004546,86.389,86.357,0.68385098]
[1771685996654,0.72004546,86.379,86.351,0.68385098]
[1771685996961,4.12326838,86.38,86.351,0.68385098]
[1771685997557,4.12326838,86.38,86.344,28.95395163]
[1771685997558,0.72004546,86.379,86.353,0.68385098]
[1771686000486,0.72004546,86.378,86.353,0.68385098]
[1771686001084,4.12326838,86.39,86.354,0.68385098]
[1771686001259,0.72004546,86.433,86.371,0.68385098]
[1771686001461,0.72004546,86.425,86.383,0.68385098]
[1771686001865,0.72004546,86.419,86.383,0.68385098]
[1771686002966,0.72004546,86.419,86.384,11.57621781]
[1771686003169,0.72004546,86.419,86.385,0.68385098]
[1771686004977,0.72004546,86.458,86.403,0.68385098]
[1771686005181,0.72004546,86.456,86.403,0.68385098]
[1771686005382,0.72004546,86.454,86.403,0.68385098]
[1771686006405,32.41026181,86.55,86.411,0.68385098]
[1771686006406,0.28432314,86.474,86.411,0.68385098]
[1771686006696,0.1,86.48,86.433,0.68385098]
[1771686006861,0.1,86.48,86.443,0.68385098]
[1771686007964,0.79775146,86.48,86.443,0.68385098]
[1771686009165,0.1,86.48,86.445,0.71392653]
[1771686010789,0.71820253,86.469,86.445,0.71392653]
[1771686011167,0.71820253,86.469,86.447,0.71852039]
[1771686011977,0.71820253,86.479,86.447,0.71852039]
[1771686014270,4.12326838,86.47,86.447,0.71852039]
[1771686014576,4.84147091,86.47,86.449,0.71852039]
[1771686016070,0.71820253,86.469,86.449,0.71852039]
[1771686018093,0.71820253,86.469,86.45,11.56737998]
[1771686022908,0.71820253,86.459,86.442,0.71852039]
[1771686028998,4.12326838,86.46,86.442,0.71852039]
[1771686031582,4.84147091,86.46,86.442,0.71852039]
[1771686033203,0.71820253,86.459,86.442,0.71852039]
[1771686035586,0.71820253,86.459,86.435,0.71852039]
[1771686038011,0.71820253,86.459,86.437,0.70403775]
[1771686040315,0.73544873,86.449,86.426,0.70403775]
[1771686041494,0.73544873,86.449,86.427,0.70403775]
[1771686042001,0.73544873,86.459,86.427,0.70403775]
[1771686043009,0.73544873,86.449,86.429,0.70403775]
[1771686043312,0.73544873,86.459,86.429,0.70403775]
[1771686046014,0.73544873,86.459,86.425,28.92681515]
[1771686046015,0.73544873,86.459,86.431,0.70403775]
[1771686046388,0.73544873,86.457,86.431,0.70403775]
[1771686047315,0.73544873,86.457,86.425,28.92681515]
[1771686047316,0.73544873,86.455,86.433,0.70403775]
[1771686048205,7.1798499,86.454,86.433,0.70403775]
[1771686048507,7.91529863,86.453,86.433,0.70403775]
[1771686048705,0.73544873,86.453,86.433,0.70403775]
[1771686049012,0.73544873,86.453,86.435,0.70403775]
[1771686049399,0.73544873,86.451,86.435,0.70403775]
[1771686049597,7.92172767,86.45,86.435,0.70403775]
[1771686049793,0.73544873,86.45,86.435,0.70403775]
[1771686050196,7.17991526,86.449,86.435,0.70403775]
[1771686050395,0.73544873,86.45,86.435,0.70403775]
[1771686050613,7.17982167,86.449,86.435,0.70403775]
[1771686050809,0.73544873,86.45,86.435,0.70403775]
[1771686051016,7.9152704,86.449,86.435,0.70403775]
[1771686051314,0.73544873,86.449,86.435,0.70403775]
[1771686052608,0.73544873,86.447,86.43,0.70403775]
[1771686055513,0.73544873,86.447,86.412,29.2154901]
[1771686055807,0.73544873,86.447,86.414,0.70403775]
[1771686057616,0.73544873,86.447,86.416,0.70403775]
[1771686058617,0.73544873,86.439,86.416,0.70403775]
[1771686060502,0.73544873,86.439,86.417,11.57179721]
[1771686060807,0.73544873,86.439,86.418,0.70403775]
[1771686061731,0.73544873,86.439,86.419,12.27556715]
[1771686061913,0.73544873,86.457,86.42,0.70403775]
[1771686062122,0.73544873,86.449,86.42,0.70403775]
[1771686062323,0.73544873,86.447,86.42,0.70403775]
[1771686062512,4.11574664,86.44,86.42,0.70403775]
[1771686062699,0.73544873,86.448,86.42,0.70403775]
[1771686063019,4.95119537,86.48,86.434,0.70403775]
[1771686063208,4.21574664,86.48,86.438,0.70403775]
[1771686063409,4.21574664,86.48,86.428,3.69383402]
[1771686063410,0.1,86.48,86.444,0.70403775]
[1771686063815,4.21574664,86.48,86.446,0.70403775]
[1771686064117,0.73544873,86.479,86.446,0.70403775]
[1771686066428,0.73544873,86.479,86.448,0.70403775]
[1771686067729,0.73544873,86.479,86.45,0.7455431]
[1771686069012,0.73544873,86.479,86.452,0.7455431]
[1771686070925,0.75760714,86.469,86.445,11.56804904]
[1771686071322,0.75760714,86.469,86.446,0.74260582]
[1771686073524,0.75760714,86.469,86.447,11.56778141]
[1771686074827,0.75760714,86.459,86.43,0.74260582]
[1771686075032,4.11574664,86.44,86.423,0.74260582]
[1771686075413,0.75760714,86.444,86.423,0.74260582]
[1771686076233,0.75760714,86.439,86.42,11.57139551]
[1771686076428,40.47740204,86.468,86.42,11.57139551]
[1771686076429,4.11574664,86.43,86.42,11.57139551]
[1771686078135,0.75760714,86.429,86.402,0.74260582]
[1771686078431,4.11574664,86.42,86.402,0.74260582]
[1771686079125,4.11574664,86.42,86.368,3.69383402]
[1771686079126,4.11574664,86.44,86.404,0.79693625]
[1771686080436,4.11574664,86.42,86.39,0.79693625]
[1771686080641,0.28432314,86.439,86.39,0.79693625]
[1771686081139,4.11574664,86.4,86.39,0.79693625]
[1771686082535,4.11574664,86.4,86.391,11.57527983]
[1771686082736,4.11574664,86.4,86.384,0.79693625]
[1771686083537,4.11574664,86.39,86.363,0.28432314]
[1771686084624,0.3066933,86.399,86.364,40.52614514]
[1771686085641,0.3066933,86.399,86.365,0.74260582]
[1771686086440,0.3066933,86.399,86.367,0.74260582]
[1771686089227,0.31902478,86.419,86.369,0.74260582]
[1771686089430,0.31902478,86.419,86.373,0.74260582]
[1771686089840,4.11574664,86.43,86.384,0.74260582]
[1771686090143,0.31902478,86.432,86.394,0.74260582]
[1771686090728,0.31902478,86.432,86.401,0.74260582]
[1771686091730,0.32293857,86.438,86.403,0.74260582]
[1771686093024,0.32486987,86.429,86.403,0.74260582]
[1771686093226,0.32677205,86.419,86.402,11.57380616]
[1771686097946,11.56778141,86.447,86.403,0.81287339]
[1771686098327,4.11574664,86.44,86.403,0.81287339]
[1771686100745,4.11574664,86.44,86.405,0.81287339]
[1771686101229,4.11574664,86.43,86.405,0.81287339]
[1771686101641,4.11574664,86.43,86.404,11.57353826]
[1771686101840,4.11574664,86.43,86.405,0.81287339]
[1771686103146,0.02100281,86.429,86.406,11.57327037]
[1771686108754,0.02100281,86.429,86.406,0.81287339]
[1771686112047,0.03553641,86.429,86.392,0.81287339]
[1771686114942,0.04065233,86.438,86.401,0.81287339]
[1771686118558,0.04065233,86.438,86.403,0.81287339]
[1771686119558,0.04878652,86.429,86.402,11.57380616]
[1771686121162,0.04878652,86.429,86.402,0.81287339]
[1771686121369,0.0519344,86.439,86.402,0.81287339]
[1771686121948,4.11796715,86.46,86.421,0.83884059]
[1771686122944,11.56512474,86.467,86.421,0.83884059]
[1771686123862,0.1,86.48,86.423,0.83884059]
[1771686124067,11.5636655,86.478,86.431,0.83884059]
[1771686124277,4.11796715,86.47,86.431,0.83884059]
[1771686126457,11.5636655,86.478,86.433,0.83884059]
[1771686127554,4.21796715,86.48,86.441,0.83884059]
[1771686128177,0.1,86.48,86.441,0.83884059]
[1771686128469,0.1,86.48,86.451,0.83884059]
[1771686131359,4.11796715,86.46,86.425,11.57072606]
[1771686131554,4.11796715,86.45,86.425,11.57072606]
[1771686131769,4.11796715,86.45,86.418,12.41041295]
[1771686133280,4.11796715,86.44,86.409,0.83884059]
[1771686133574,4.11796715,86.43,86.402,11.57376282]
[1771686134170,4.11796715,86.43,86.405,11.57340431]
[1771686135183,4.11796715,86.43,86.401,11.57394011]
[1771686135577,4.11796715,86.43,86.401,0.83884059]
[1771686138485,4.11796715,86.43,86.403,0.83884059]
[1771686138680,4.11796715,86.43,86.385,0.83884059]
[1771686140471,4.11796715,86.43,86.387,0.83884059]
[1771686140662,4.11796715,86.43,86.391,0.83884059]
[1771686142783,4.11796715,86.42,86.393,0.83884059]
[1771686142966,4.11796715,86.42,86.392,11.57514584]
[1771686144682,4.11796715,86.42,86.393,0.83884059]
[1771686148878,4.11796715,86.42,86.395,0.83884059]
[1771686153887,0.28432314,86.436,86.395,0.83884059]
[1771686154089,4.11796715,86.42,86.395,0.83884059]
[1771686156076,4.11796715,86.4,86.377,0.83884059]
[1771686157396,4.11796715,86.4,86.379,0.83884059]
[1771686159479,4.11796715,86.4,86.38,12.41559446]
[1771686159678,4.11796715,86.41,86.381,0.83884059]
[1771686162684,4.11796715,86.44,86.38,11.57675387]
[1771686162685,4.11796715,86.42,86.383,0.83884059]
[1771686165987,4.11986304,86.42,86.385,0.83884059]
[1771686169076,4.11986304,86.42,86.387,0.83884059]
[1771686169703,4.11986304,86.43,86.387,0.83884059]
[1771686170580,4.11986304,86.42,86.387,0.83884059]
[1771686174994,4.11986304,86.41,86.387,0.83884059]
[1771686178501,15.6926908,86.41,86.38,11.57675387]
[1771686178700,4.11986304,86.4,86.38,11.57675387]
[1771686180490,4.11986304,86.39,86.359,11.579569]
[1771686180799,4.11986304,86.38,86.35,0.93884059]
[1771686181395,4.11986304,86.37,86.35,0.1]
[1771686184195,11.57822829,86.369,86.35,0.1]
[1771686184399,4.11986304,86.36,86.33,1.03884059]
[1771686185417,4.11986304,86.35,86.33,0.2]
[1771686186696,4.11986304,86.34,86.32,0.1]
[1771686187195,4.11986304,86.33,86.318,0.11521995]
[1771686189114,11.58306565,86.333,86.318,0.11521995]
[1771686189335,4.11986304,86.33,86.318,0.11521995]
[1771686194617,4.11986304,86.34,86.318,0.95406054]
[1771686195013,11.579569,86.359,86.319,0.83884059]
[1771686195217,4.11986304,86.35,86.319,0.83884059]
[1771686196520,15.70069379,86.35,86.319,0.83884059]
[1771686196722,28.94674656,86.366,86.321,0.83884059]
[1771686196723,15.69941675,86.36,86.321,0.83884059]
[1771686197218,4.11986304,86.36,86.321,0.83884059]
[1771686198203,11.579569,86.359,86.321,0.83884059]
[1771686201308,4.11986304,86.35,86.323,0.83884059]
[1771686202208,4.11986304,86.34,86.323,0.83884059]
[1771686202617,4.11986304,86.34,86.318,0.11521995]
[1771686202824,4.11986304,86.33,86.318,0.11521995]
[1771686205717,11.58098874,86.349,86.319,0.83884059]
[1771686205930,11.58098874,86.349,86.321,0.83884059]
[1771686206114,4.11986304,86.37,86.321,0.83884059]
[1771686206314,0.28432314,86.369,86.321,0.83884059]
[1771686206529,4.11986304,86.35,86.321,0.83884059]
[1771686209520,4.11986304,86.36,86.323,0.83884059]
[1771686209723,11.57840964,86.368,86.331,0.83884059]
[1771686209919,4.11986304,86.36,86.331,0.83884059]
[1771686210124,4.11986304,86.35,86.323,0.83884059]
[1771686217239,4.11986304,86.34,86.319,0.83884059]
[1771686220639,4.11986304,86.35,86.321,0.83884059]
[1771686223328,11.86402623,86.358,86.321,0.83884059]
[1771686223329,4.11986304,86.34,86.321,0.83884059]
[1771686225442,11.58091002,86.349,86.321,0.83884059]
[1771686225735,4.11986304,86.36,86.323,0.83884059]
[1771686227645,0.28432314,86.37,86.324,11.58426393]
[1771686227844,4.11986304,86.36,86.325,0.83884059]
[1771686228142,4.12558976,86.36,86.325,0.83884059]
[1771686229525,4.12558976,86.35,86.327,0.83884059]
[1771686232427,4.12558976,86.34,86.318,0.11521995]
[1771686232743,4.12558976,86.34,86.318,0.95406054]
[1771686240240,4.12558976,86.34,86.32,0.83884059]
[1771686240545,4.12558976,86.36,86.321,0.83884059]
[1771686240747,11.57822829,86.369,86.321,0.83884059]
[1771686240946,11.57822829,86.369,86.33,4.12558976]
[1771686241245,11.57822829,86.369,86.331,0.83884059]
[1771686241444,4.12558976,86.36,86.331,0.83884059]
[1771686241641,4.12558976,86.36,86.319,11.58493495]
[1771686241839,4.12558976,86.35,86.32,0.83884059]
[1771686242355,11.57999591,86.356,86.321,11.58466653]
[1771686242647,11.57999591,86.356,86.322,0.83884059]
[1771686243643,4.12558976,86.35,86.322,0.83884059]
[1771686244046,4.12558976,86.35,86.324,0.83884059]
[1771686246861,11.58033407,86.354,86.326,0.83884059]
[1771686247039,4.12558976,86.35,86.326,0.83884059]
[1771686247640,4.12558976,86.34,86.319,0.83884059]
[1771686248138,40.53093276,86.354,86.319,0.83884059]
[1771686248339,4.12558976,86.35,86.319,0.83884059]
[1771686249144,11.58091002,86.349,86.319,0.83884059]
[1771686253561,4.12558976,86.34,86.319,0.83884059]
[1771686255767,11.58099104,86.349,86.32,0.83884059]
[1771686258767,11.58025463,86.354,86.322,0.83884059]
[1771686259379,4.12558976,86.35,86.322,0.83884059]
[1771686261168,11.58091002,86.349,86.321,0.83884059]
[1771686261373,4.12558976,86.34,86.321,0.83884059]
[1771686264687,11.58181335,86.343,86.321,0.83884059]
[1771686266567,4.12558976,86.35,86.321,0.83884059]
[1771686271486,11.58091002,86.349,86.321,0.83884059]
[1771686274095,4.12558976,86.34,86.321,0.83884059]
[1771686274894,28.95178236,86.351,86.321,0.83884059]
[1771686275197,4.12558976,86.35,86.321,0.83884059]
[1771686277898,11.58091002,86.349,86.321,0.83884059]
[1771686278391,11.5776921,86.373,86.331,0.83884059]
[1771686278603,46.27937469,86.432,86.319,40.54727232]
[1771686278604,4.12558976,86.39,86.341,0.83884059]
[1771686280385,4.12558976,86.38,86.343,0.83884059]
[1771686283081,4.12558976,86.37,86.343,0.83884059]
[1771686283600,4.12558976,86.37,86.345,0.83884059]
[1771686283793,11.5768879,86.379,86.345,0.83884059]
[1771686286093,4.12558976,86.37,86.345,0.83884059]
[1771686288007,4.12394429,86.37,86.345,0.83884059]
[1771686292897,4.12394429,86.37,86.346,11.58131239]
[1771686293103,4.12394429,86.37,86.347,0.83884059]
[1771686293696,11.57749994,86.375,86.347,0.83884059]
[1771686297507,4.12394429,86.37,86.347,0.83884059]
[1771686298918,4.12394429,86.37,86.344,11.58150346]
[1771686299301,4.12394429,86.37,86.34,0.83884059]
[1771686300221,4.12394429,86.38,86.341,0.83884059]
[1771686300515,11.57554781,86.389,86.351,0.83884059]
[1771686301402,4.12394429,86.38,86.351,0.83884059]
[1771686306624,4.12394429,86.37,86.342,0.83884059]
[1771686309931,28.94298877,86.377,86.334,0.83884059]
[1771686309932,4.12394429,86.36,86.334,0.83884059]
[1771686311018,4.12394429,86.37,86.334,0.83884059]
[1771686313727,11.57822829,86.369,86.334,0.83884059]
[1771686314116,11.57822829,86.369,86.333,11.5829835]
[1771686314117,11.57822829,86.369,86.336,0.83884059]
[1771686315122,11.57822829,86.369,86.341,0.83884059]
[1771686316937,4.12394429,86.37,86.34,4.12394429]
[1771686316938,11.57767571,86.374,86.343,0.83884059]
[1771686318833,4.12394429,86.38,86.345,0.83884059]
[1771686322731,11.5768879,86.379,86.345,0.83884059]
[1771686324513,4.12394429,86.37,86.336,0.83884059]
[1771686325538,11.57822829,86.369,86.336,0.83884059]
[1771686328931,4.12394429,86.36,86.336,0.83884059]
[1771686329131,4.12394429,86.37,86.336,0.83884059]
[1771686329519,11.57715595,86.377,86.338,0.83884059]
[1771686329722,0.28432314,86.376,86.338,0.83884059]
[1771686329922,4.12394429,86.37,86.338,0.83884059]
[1771686331043,11.57822829,86.369,86.338,0.83884059]
[1771686333039,11.579569,86.359,86.321,0.83884059]
[1771686333527,11.579569,86.359,86.322,0.83884059]
[1771686333729,4.12394429,86.35,86.322,0.83884059]
[1771686334338,11.57952176,86.36,86.322,0.83884059]
[1771686334533,15.70346605,86.36,86.322,0.83884059]
[1771686336243,0.28432314,86.359,86.322,0.83884059]
[1771686338849,4.12394429,86.36,86.324,0.83884059]
[1771686339144,11.5786467,86.366,86.331,0.83884059]
[1771686341445,11.5786467,86.366,86.333,0.83884059]
[1771686344455,4.12394429,86.36,86.333,0.83884059]
[1771686345643,104.4,86.395,86.32,4.12394429]
[1771686345644,11.57487788,86.394,86.341,0.83884059]
[1771686345850,4.12394429,86.39,86.351,0.83884059]
[1771686346255,11.57487788,86.394,86.351,0.83884059]
[1771686346435,4.12394429,86.39,86.351,0.83884059]
[1771686346830,40.51207259,86.394,86.344,0.83884059]
[1771686346831,4.12394429,86.37,86.344,0.83884059]
[1771686347958,4.12443771,86.37,86.344,0.83884059]
[1771686350157,4.12443771,86.36,86.322,0.83884059]
[1771686351660,11.579569,86.359,86.323,0.83884059]
[1771686353238,4.12443771,86.35,86.323,0.83884059]
[1771686353543,11.58091002,86.349,86.318,0.95406054]
[1771686354342,11.58091002,86.349,86.318,0.11521995]
[1771686354538,11.58091002,86.349,86.319,0.83884059]
[1771686358269,4.12443771,86.34,86.319,0.83884059]
[1771686358864,11.58091002,86.349,86.319,0.83884059]
[1771686361266,4.12443771,86.34,86.319,0.83884059]
[1771686361771,4.12443771,86.34,86.318,0.11521995]
[1771686361970,40.82220288,86.339,86.31,0.2]
[1771686362155,4.12443771,86.32,86.29,0.2]
[1771686362361,4.12443771,86.31,86.291,0.83884059]
[1771686367764,4.12443771,86.3,86.29,0.2]
[1771686368075,40.53787974,86.339,86.291,0.83884059]
[1771686368376,4.12443771,86.33,86.291,0.83884059]
[1771686368574,0.28432314,86.338,86.3,4.12443771]
[1771686368770,0.28432314,86.338,86.301,0.83884059]
[1771686368969,11.58225135,86.339,86.301,0.83884059]
[1771686369864,11.58225135,86.339,86.303,0.83884059]
[1771686370066,4.12443771,86.35,86.311,0.83884059]
[1771686370380,4.12443771,86.35,86.302,11.58721698]
[1771686370381,11.57916676,86.362,86.331,0.83884059]
[1771686371083,11.57420803,86.399,86.331,0.83884059]
[1771686371283,4.12443771,86.39,86.351,0.83884059]
[1771686371777,0.28432314,86.389,86.351,0.83884059]
[1771686372080,11.57554781,86.389,86.351,0.83884059]
[1771686372279,0.28432314,86.388,86.351,0.83884059]
[1771686372978,0.14216157,86.388,86.351,0.83884059]
[1771686373173,0.28432314,86.388,86.351,0.83884059]
[1771686373484,0.28432314,86.388,86.35,4.12443771]
[1771686373485,0.75454074,86.369,86.33,4.12443771]
[1771686373668,0.75454074,86.369,86.331,11.58332464]
[1771686374666,0.75483318,86.367,86.331,11.58332464]
[1771686375066,11.57754743,86.375,86.331,11.58332464]
[1771686375272,0.75483318,86.374,86.341,0.77676841]
[1771686375868,0.7551213,86.383,86.351,0.77676841]
[1771686376183,0.7551213,86.383,86.35,4.12443771]
[1771686376483,0.7745188,86.381,86.35,4.12443771]
[1771686376680,0.7745188,86.375,86.303,11.58708272]
[1771686376870,0.7745188,86.369,86.34,4.12443771]
[1771686378088,0.7745188,86.369,86.341,0.77676841]
[1771686379290,11.57836235,86.368,86.341,0.77676841]
[1771686382574,12.35288115,86.368,86.341,0.77676841]
[1771686382981,11.57863047,86.366,86.341,0.77676841]
[1771686383592,0.7745188,86.365,86.341,0.77676841]
[1771686385882,11.57889861,86.364,86.341,0.77676841]
[1771686386888,3.69383402,86.393,86.33,15.70787839]
[1771686386889,0.7745188,86.396,86.351,7.63e-06]
[1771686387388,0.7745188,86.389,86.351,7.63e-06]
[1771686388274,0.7745188,86.387,86.351,11.58064179]
[1771686388677,0.7745188,86.387,86.352,0.77676841]
[1771686388877,0.7745188,86.387,86.36,4.12443771]
[1771686389178,0.7745188,86.387,86.361,0.77676841]
[1771686390480,11.5759498,86.386,86.361,0.77676841]
[1771686390681,0.7745188,86.385,86.361,0.77676841]
[1771686392581,11.57621781,86.384,86.361,0.77676841]
[1771686392783,0.7745188,86.383,86.361,0.77676841]
[1771686395805,0.7745188,86.381,86.361,0.77676841]
[1771686397904,0.7745188,86.381,86.352,0.80604521]
[1771686398106,0.79237409,86.379,86.352,0.80604521]
[1771686398402,12.3685499,86.385,86.361,0.80604521]
[1771686398806,0.79237409,86.384,86.361,0.80604521]
[1771686400304,0.79237409,86.402,86.361,0.80604521]
[1771686400512,0.79237409,86.411,86.381,0.80604521]
[1771686400808,0.79237409,86.399,86.371,0.80604521]
[1771686403407,0.79237409,86.399,86.372,0.80604521]
[1771686404094,11.57317664,86.407,86.381,0.80604521]
[1771686404810,0.79237409,86.406,86.381,0.80604521]
[1771686406512,11.57340431,86.405,86.381,0.80604521]
[1771686406813,0.79237409,86.404,86.372,0.80604521]
[1771686407598,11.57367221,86.403,86.372,0.80604521]
[1771686407802,0.79237409,86.402,86.372,0.80604521]
[1771686408999,0.79237409,86.402,86.374,0.80604521]
[1771686410415,0.79237409,86.4,86.374,0.80604521]
[1771686411504,0.79237409,86.4,86.375,11.57742402]
[1771686411714,0.79237409,86.4,86.376,0.80604521]
[1771686413514,0.79237409,86.4,86.38,4.92634189]
[1771686413902,0.79237409,86.4,86.381,0.80604521]
[1771686415818,0.79237409,86.4,86.36,4.12029668]
[1771686415819,0.79237409,86.398,86.37,4.12029668]
[1771686416018,0.79237409,86.398,86.37,4.92634189]
[1771686416224,0.79237409,86.398,86.371,12.3840054]
[1771686416408,0.79237409,86.398,86.372,0.80604521]
[1771686417319,0.79237409,86.398,86.371,11.57796019]
[1771686421527,0.79237409,86.398,86.371,12.3840054]
[1771686422325,0.79237409,86.398,86.372,0.80604521]
[1771686422507,0.79237409,86.403,86.374,0.80604521]
[1771686423423,0.79237409,86.419,86.391,0.80604521]
[1771686423804,0.79237409,86.419,86.373,40.52192235]
[1771686423805,0.79237409,86.419,86.373,11.5776921]
[1771686424008,0.79237409,86.409,86.373,11.5776921]
[1771686424728,0.79237409,86.408,86.373,11.5776921]
[1771686425513,0.79237409,86.408,86.38,4.12029668]
[1771686425828,0.79237409,86.408,86.38,15.69692739]
[1771686427431,0.79237409,86.408,86.381,0.13059506]
[1771686427635,0.8167991,86.413,86.381,0.13059506]
[1771686427933,0.8167991,86.413,86.39,4.12029668]
[1771686428434,0.8167991,86.413,86.39,4.25373401]
[1771686429831,11.57246678,86.412,86.39,4.25373401]
[1771686430438,0.76036681,86.411,86.39,4.25373401]
[1771686431314,0.76036681,86.411,86.39,4.12029668]
[1771686431731,0.76036681,86.411,86.384,0.1389266]
[1771686432239,0.76036681,86.411,86.381,0.14025965]
[1771686435716,28.9249848,86.431,86.381,0.14025965]
[1771686435717,0.76036681,86.409,86.381,0.14025965]
[1771686436239,0.76036681,86.42,86.391,0.14416747]
[1771686436934,0.76036681,86.419,86.385,0.14544121]
[1771686437919,0.76036681,86.417,86.385,0.14544121]
[1771686443136,0.76036681,86.415,86.385,0.14544121]
[1771686446142,0.76036681,86.413,86.385,0.14544121]
[1771686448029,0.76036681,86.411,86.385,0.14544121]
[1771686453148,0.76036681,86.421,86.391,0.16394636]
[1771686453333,0.76036681,86.421,86.401,0.16498915]
[1771686453535,0.2,86.44,86.411,0.16498915]
[1771686453736,0.76036681,86.439,86.411,0.16498915]
[1771686454634,0.76036681,86.438,86.411,11.73756929]
[1771686460463,0.2,86.44,86.421,0.17291318]
[1771686463762,0.2,86.44,86.422,11.57112772]
[1771686463953,0.2,86.44,86.423,0.17571679]
[1771686464752,0.2,86.45,86.435,0.17662362]
[1771686464950,0.2,86.46,86.441,0.17662362]
[1771686466458,0.2,86.46,86.443,0.17839954]
[1771686467353,0.2,86.47,86.451,0.17927326]
[1771686467748,0.2,86.47,86.46,4.12029668]
[1771686469369,0.89534616,86.48,86.461,0.18013321]
[1771686470061,0.1,86.48,86.461,0.18013321]